fUST/lending_fUST_20250810
["ID","MTS","AMOUNT","RATE_DAILY","PERIOD"]
[378186592,1754773839895,-460.0,0.00021516,2]
[378186593,1754773839905,-460.0,0.00021516,2]
[378186594,1754773839915,-460.0,0.00021516,2]
[378186595,1754773839924,-460.0,0.00021516,2]
[378186596,1754773839934,-460.0,0.00021516,2]
[378186597,1754773839943,-460.0,0.00021516,2]
[378186598,1754773839953,-460.0,0.00021516,2]
[378186599,1754773839963,-460.0,0.00021516,2]
[378186600,1754773839974,-460.0,0.00021516,2]
[378186601,1754773839983,-464.69163569,0.00021516,2]
[378186602,1754773839993,-460.0,0.00021516,2]
[378186603,1754773840003,-460.0,0.00021516,2]
[378186604,1754773840012,-460.0,0.00021516,2]
[378186605,1754773840022,-460.0,0.00021516,2]
[378186606,1754773840031,-460.0,0.00021516,2]
[378186607,1754773840041,-460.0,0.00021516,2]
[378186608,1754773840050,-460.0,0.00021516,2]
[378186609,1754773840060,-460.0,0.00021516,2]
[378186610,1754773840069,-460.0,0.00021516,2]
[378186611,1754773840079,-463.46513897,0.00021516,2]
[378186612,1754773840088,-460.0,0.00021516,2]
[378186613,1754773840097,-460.0,0.00021516,2]
[378186614,1754773840107,-460.0,0.00021516,2]
[378186615,1754773840116,-460.0,0.00021516,2]
[378186616,1754773840125,-460.0,0.00021516,2]
[378186617,1754773840135,-460.0,0.00021516,2]
[378186618,1754773840145,-460.0,0.00021516,2]
[378186619,1754773840154,-460.0,0.00021516,2]
[378186620,1754773840164,-460.0,0.00021516,2]
[378186621,1754773840173,-460.0,0.00021516,2]
[378186622,1754773840182,-464.0381748,0.00021516,2]
[378186623,1754773840192,-460.0,0.00021516,2]
[378186624,1754773840201,-460.0,0.00021516,2]
[378186625,1754773840211,-544.45258575,0.00021516,2]
[378186626,1754773840220,-469.17228992,0.00021516,2]
[378186627,1754773840230,-460.0,0.00021516,2]
[378186628,1754773840239,-369.429668,0.00021516,2]
[378186629,1754773840249,-460.0,0.00021516,2]
[378186630,1754773840259,-500.0,0.00021516,2]
[378186632,1754773840268,-460.0,0.00021516,2]
[378186633,1754773840279,-460.0,0.00021516,2]
[378186635,1754773840289,-460.0,0.00021516,2]
[378186636,1754773840300,-557.56009714,0.00021516,2]
[378186637,1754773840309,-460.0,0.00021516,2]
[378186638,1754773840319,-460.0,0.00021516,2]
[378186639,1754773840328,-460.0,0.00021516,2]
[378186640,1754773840338,-460.0,0.00021516,2]
[378186641,1754773840347,-460.0,0.00021516,2]
[378186642,1754773840356,-279.16,0.00021516,2]
[378186643,1754773840366,-460.0,0.00021516,2]
[378186644,1754773840375,-460.0,0.00021516,2]
[378186645,1754773840385,-460.0,0.00021516,2]
[378186646,1754773840394,-460.0,0.00021516,2]
[378186648,1754773840403,-460.0,0.00021516,2]
[378186650,1754773840413,-460.0,0.00021517,2]
[378186652,1754773840422,-500.0,0.00021517,2]
[378186654,1754773840432,-500.0,0.00021517,2]
[378186656,1754773840441,-500.0,0.00021654,2]
[378186658,1754773840451,-5349.41187522,0.00021655,2]
[378186660,1754773840460,-1310.15,0.00021788,2]
[378186662,1754773840470,-460.0,0.00021788,2]
[378186664,1754773840479,-460.0,0.00021788,2]
[378186665,1754773840489,-599.90317827,0.00021788,2]
[378186666,1754773840499,-460.0,0.00021788,2]
[378186667,1754773840508,-460.0,0.00021788,2]
[378186668,1754773840518,-460.0,0.00021788,2]
[378186669,1754773840528,-460.0,0.00021788,2]
[378186670,1754773840539,-460.0,0.00021788,2]
[378186671,1754773840549,-460.0,0.00021788,2]
[378186672,1754773840558,-460.0,0.00021788,2]
[378186673,1754773840567,-460.0,0.00021788,2]
[378186674,1754773840577,-470.67233647,0.00021788,2]
[378186675,1754773840587,-460.0,0.00021788,2]
[378186676,1754773840596,-460.0,0.00021788,2]
[378186677,1754773840606,-460.0,0.00021788,2]
[378186679,1754773840616,-460.0,0.00021788,2]
[378186681,1754773840625,-460.0,0.00021788,2]
[378186683,1754773840635,-460.0,0.00021788,2]
[378186685,1754773840644,-460.0,0.00021788,2]
[378186687,1754773840653,-460.0,0.00021788,2]
[378186689,1754773840663,-268.11608006,0.00021789,2]
[378186691,1754773840673,-460.0,0.00021789,2]
[378186693,1754773840682,-460.0,0.00021789,2]
[378186695,1754773840691,-460.0,0.00021789,2]
[378186697,1754773840701,-582.0,0.00021789,2]
[378186699,1754773840710,-460.0,0.00021789,2]
[378186701,1754773840719,-460.0,0.00021789,2]
[378186703,1754773840729,-460.0,0.00021789,2]
[378186705,1754773840738,-945.05,0.00021789,2]
[378186707,1754773840748,-460.0,0.00021789,2]
[378186709,1754773840757,-169.62342943,0.00021789,2]
[378186711,1754773840766,-460.0,0.00021789,2]
[378186713,1754773840776,-460.0,0.00021789,2]
[378186715,1754773840786,-460.0,0.00021789,2]
[378186717,1754773840795,-460.0,0.00021789,2]
[378186719,1754773840806,-460.0,0.00021789,2]
[378186721,1754773840816,-460.0,0.00021789,2]
[378186723,1754773840825,-460.0,0.00021789,2]
[378186725,1754773840835,-460.0,0.00021789,2]
[378186727,1754773840844,-460.0,0.00021789,2]
[378186729,1754773840854,-512.47,0.00021789,2]
[378186731,1754773840863,-460.0,0.00021789,2]
[378186733,1754773840874,-460.0,0.00021789,2]
[378186736,1754773840884,-460.0,0.00021789,2]
[378186738,1754773840901,-460.0,0.00021789,2]
[378186740,1754773840911,-460.0,0.00021789,2]
[378186742,1754773840922,-460.0,0.00021789,2]
[378186744,1754773840938,-460.0,0.00021789,2]
[378186746,1754773840954,-469.88870094,0.00021789,2]
[378186748,1754773840971,-460.0,0.00021789,2]
[378186750,1754773840991,-460.0,0.00021789,2]
[378186752,1754773841011,-460.0,0.00021789,2]
[378186754,1754773841029,-460.0,0.00021789,2]
[378186756,1754773841048,-460.0,0.00021789,2]
[378186758,1754773841067,-460.0,0.00021789,2]
[378186760,1754773841084,-460.0,0.00021789,2]
[378186762,1754773841103,-460.0,0.00021789,2]
[378186764,1754773841121,-460.0,0.00021789,2]
[378186766,1754773841138,-460.0,0.00021789,2]
[378186768,1754773841156,-460.0,0.00021789,2]
[378186770,1754773841176,-460.0,0.00021789,2]
[378186773,1754773841197,-460.0,0.00021789,2]
[378186774,1754773841217,-460.0,0.00021789,2]
[378186777,1754773841237,-460.0,0.00021789,2]
[378186779,1754773841258,-460.0,0.00021789,2]
[378186781,1754773841271,-152.97743756,0.00021789,2]
[378186783,1754773841281,-460.0,0.0002179,2]
[378186785,1754773841291,-460.0,0.0002179,2]
[378186787,1754773841300,-460.0,0.0002179,2]
[378186788,1754773841309,-460.0,0.0002179,2]
[378186790,1754773841318,-460.0,0.0002179,2]
[378186793,1754773841328,-460.0,0.0002179,2]
[378186794,1754773841337,-460.0,0.0002179,2]
[378186796,1754773841346,-460.0,0.0002179,2]
[378186798,1754773841355,-460.0,0.0002179,2]
[378186800,1754773841364,-460.0,0.0002179,2]
[378186802,1754773841376,-460.0,0.0002179,2]
[378186805,1754773841399,-460.0,0.0002179,2]
[378186806,1754773841423,-213.38573137,0.0002179,2]
[378186808,1754773841447,-460.0,0.0002179,2]
[378186810,1754773841472,-552.74152961,0.0002179,2]
[378186811,1754773841495,-460.0,0.0002179,2]
[378186812,1754773841518,-460.0,0.0002179,2]
[378186813,1754773841543,-217.58981636,0.0002179,2]
[378186814,1754773841582,-460.0,0.0002179,2]
[378186815,1754773841608,-169.89,0.0002179,2]
[378186816,1754773841632,-500.0,0.00021791,2]
[378186817,1754773841677,-1436.53,0.00021917,2]
[378186818,1754773841700,-219.0,0.00022,2]
[378186819,1754773841724,-316.46,0.00022,2]
[378186820,1754773841747,-168.0,0.00022,2]
[378186821,1754773841763,-199.52,0.00022054,3]
[378186822,1754773841781,-500.0,0.00022062,2]
[378186823,1754773841800,-160.74400458,0.00022062,2]
[378186824,1754773841819,-500.0,0.00022062,2]
[378186825,1754773841838,-500.0,0.00022062,2]
[378186826,1754773841857,-500.0,0.00022062,2]
[378186827,1754773841876,-1310.15,0.00022062,2]
[378186828,1754773841895,-460.0,0.00022062,2]
[378186829,1754773841919,-460.0,0.00022062,2]
[378186830,1754773841938,-460.0,0.00022062,2]
[378186831,1754773841957,-460.0,0.00022062,2]
[378186832,1754773841974,-460.0,0.00022062,2]
[378186833,1754773841993,-460.0,0.00022062,2]
[378186834,1754773842011,-460.0,0.00022062,2]
[378186835,1754773842030,-460.0,0.00022062,2]
[378186836,1754773842050,-460.0,0.00022062,2]
[378186837,1754773842066,-460.0,0.00022062,2]
[378186838,1754773842076,-460.0,0.00022062,2]
[378186839,1754773842085,-460.0,0.00022063,2]
[378186840,1754773842095,-460.0,0.00022063,2]
[378186841,1754773842104,-460.0,0.00022063,2]
[378186842,1754773842113,-241.98645761,0.00022063,2]
[378186843,1754773842125,-945.05,0.00022063,2]
[378186844,1754773842134,-460.0,0.00022063,2]
[378186845,1754773842144,-460.0,0.00022063,2]
[378186846,1754773842153,-460.0,0.00022063,2]
[378186847,1754773842163,-460.0,0.00022063,2]
[378186848,1754773842172,-460.0,0.00022063,2]
[378186849,1754773842181,-512.47,0.00022063,2]
[378186850,1754773842190,-460.0,0.00022063,2]
[378186851,1754773842199,-460.0,0.00022063,2]
[378186852,1754773842209,-460.0,0.00022063,2]
[378186853,1754773842218,-460.0,0.00022063,2]
[378186854,1754773842227,-460.0,0.00022063,2]
[378186855,1754773842236,-460.0,0.00022063,2]
[378186856,1754773842246,-460.0,0.00022063,2]
[378186857,1754773842255,-460.0,0.00022063,2]
[378186858,1754773842264,-460.0,0.00022063,2]
[378186859,1754773842273,-246.43295778,0.00022063,2]
[378186860,1754773842283,-460.0,0.00022063,2]
[378186861,1754773842292,-460.0,0.00022063,2]
[378186862,1754773842301,-460.0,0.00022063,2]
[378186863,1754773842310,-460.0,0.00022063,2]
[378186864,1754773842320,-232.83950658,0.00022063,2]
[378186865,1754773842329,-460.0,0.00022063,2]
[378186866,1754773842338,-460.0,0.00022063,2]
[378186867,1754773842348,-460.0,0.00022063,2]
[378186869,1754773842357,-460.0,0.00022063,2]
[378186871,1754773842366,-460.0,0.00022063,2]
[378186873,1754773842377,-460.0,0.00022063,2]
[378186875,1754773842386,-460.0,0.00022064,2]
[378186877,1754773842395,-460.0,0.00022064,2]
[378186880,1754773842405,-460.0,0.00022064,2]
[378186882,1754773842414,-460.0,0.00022064,2]
[378186883,1754773842424,-460.0,0.00022064,2]
[378186885,1754773842433,-460.0,0.00022064,2]
[378186887,1754773842443,-460.0,0.00022064,2]
[378186889,1754773842452,-500.0,0.00022064,2]
[378186891,1754773842462,-460.0,0.00022064,2]
[378186893,1754773842471,-171.0,0.00022082,6]
[378186895,1754773842480,-500.0,0.00022198,2]
[378186897,1754773842490,-558.72,0.00022199,2]
[378186899,1754773842499,-603.53,0.00022327,3]
[378186901,1754773842508,-301.76,0.00022327,3]
[378186903,1754773842517,-150.88,0.00022327,3]
[378186905,1754773842527,-452.68,0.00022327,3]
[378186907,1754773842535,-399.05,0.00022327,3]
[378186909,1754773842544,-1310.15,0.00022336,2]
[378186911,1754773842554,-460.0,0.00022336,2]
[378186913,1754773842563,-460.0,0.00022336,2]
[378186915,1754773842573,-460.0,0.00022336,2]
[378186917,1754773842582,-460.0,0.00022336,2]
[378186919,1754773842592,-460.0,0.00022336,2]
[378186921,1754773842602,-460.0,0.00022336,2]
[378186923,1754773842611,-460.0,0.00022336,2]
[378186925,1754773842623,-460.0,0.00022336,2]
[378186927,1754773842632,-460.0,0.00022337,2]
[378186929,1754773842642,-460.0,0.00022337,2]
[378186931,1754773842651,-218.93,0.00022337,2]
[378186933,1754773842661,-945.05,0.00022337,2]
[378186935,1754773842670,-460.0,0.00022337,2]
[378186937,1754773842679,-460.0,0.00022337,2]
[378186939,1754773842688,-460.0,0.00022337,2]
[378186941,1754773842698,-512.47,0.00022337,2]
[378186943,1754773842707,-460.0,0.00022337,2]
[378186945,1754773842717,-460.0,0.00022337,2]
[378186947,1754773842726,-460.0,0.00022337,2]
[378186949,1754773842736,-460.0,0.00022337,2]
[378186951,1754773842745,-460.0,0.00022337,2]
[378186953,1754773842755,-460.0,0.00022337,2]
[378186955,1754773842765,-460.0,0.00022337,2]
[378186957,1754773842775,-460.0,0.00022337,2]
[378186959,1754773842784,-460.0,0.00022337,2]
[378186961,1754773842794,-460.0,0.00022337,2]
[378186963,1754773842803,-460.0,0.00022337,2]
[378186965,1754773842813,-460.0,0.00022337,2]
[378186967,1754773842822,-460.0,0.00022338,2]
[378186969,1754773842831,-460.0,0.00022338,2]
[378186971,1754773842840,-460.0,0.00022338,2]
[378186973,1754773842850,-460.0,0.00022338,2]
[378186975,1754773842859,-460.0,0.00022338,2]
[378186977,1754773842870,-460.0,0.00022338,2]
[378186979,1754773842879,-160.0,0.00022581,2]
[378186981,1754773842888,-160.0,0.00022583,2]
[378186983,1754773842900,-842.95011917,0.00022583,2]
[378186985,1754773842909,-231.92402426,0.00022583,2]
[378186986,1754773842919,-160.0,0.00022583,2]
[378186988,1754773842929,-461.55179734,0.00022583,2]
[378186990,1754773842940,-160.0,0.00022583,2]
[378186991,1754773842950,-527.77735381,0.00022583,2]
[378186992,1754773842960,-215.40758176,0.00022583,2]
[378186993,1754773842969,-216.61183532,0.00022583,2]
[378186994,1754773842981,-312.16666667,0.00022583,2]
[378186995,1754773842991,-160.0,0.00022583,2]
[378186996,1754773843001,-12666.14847857,0.00022583,2]
[378186997,1754773843011,-1310.15,0.0002261,2]
[378186998,1754773843020,-460.0,0.0002261,2]
[378186999,1754773843029,-460.0,0.0002261,2]
[378187000,1754773843039,-460.0,0.0002261,2]
[378187001,1754773843048,-460.0,0.0002261,2]
[378187002,1754773843057,-460.0,0.0002261,2]
[378187003,1754773843066,-460.0,0.0002261,2]
[378187004,1754773843076,-382.53279616,0.0002261,2]
[378187005,1754773843086,-945.05,0.00022611,2]
[378187006,1754773843096,-460.0,0.00022611,2]
[378187007,1754773843105,-460.0,0.00022611,2]
[378187008,1754773843114,-512.47,0.00022611,2]
[378187009,1754773843126,-460.0,0.00022611,2]
[378187010,1754773843136,-460.0,0.00022611,2]
[378187011,1754773843145,-460.0,0.00022611,2]
[378187012,1754773843154,-460.0,0.00022611,2]
[378187013,1754773843164,-460.0,0.00022611,2]
[378187014,1754773843174,-460.0,0.00022611,2]
[378187015,1754773843184,-460.0,0.00022611,2]
[378187016,1754773843194,-460.0,0.00022611,2]
[378187017,1754773843204,-460.0,0.00022611,2]
[378187018,1754773843213,-460.0,0.00022612,2]
[378187019,1754773843223,-460.0,0.00022612,2]
[378187020,1754773843232,-460.0,0.00022612,2]
[378187022,1754773843242,-1310.15,0.00022884,2]
[378187023,1754773843251,-460.0,0.00022884,2]
[378187024,1754773843260,-460.0,0.00022884,2]
[378187025,1754773843270,-460.0,0.00022884,2]
[378187028,1754773843280,-460.0,0.00022884,2]
[378187030,1754773843291,-460.0,0.00022884,2]
[378187031,1754773843302,-460.0,0.00022884,2]
[378187032,1754773843311,-945.05,0.00022885,2]
[378187033,1754773843321,-460.0,0.00022885,2]
[378187034,1754773843343,-460.0,0.00022885,2]
[378187035,1754773843365,-512.47,0.00022885,2]
[378187036,1754773843402,-460.0,0.00022885,2]
[378187037,1754773843429,-460.0,0.00022885,2]
[378187038,1754773843450,-460.0,0.00022885,2]
[378187039,1754773843471,-460.0,0.00022885,2]
[378187040,1754773843490,-240.81807091,0.00022885,2]
[378187041,1754773843511,-460.0,0.00022885,2]
[378187042,1754773843532,-460.0,0.00022885,2]
[378187043,1754773843553,-460.0,0.00022885,2]
[378187044,1754773843575,-351.4760294,0.00022886,2]
[378187045,1754773843596,-591.30571313,0.00022886,2]
[378187046,1754773843617,-160.0,0.00023,2]
[378187047,1754773843648,-168.0,0.00023014,7]
[378187048,1754773843658,-1310.15,0.00023158,2]
[378187049,1754773843667,-460.0,0.00023158,2]
[378187050,1754773843676,-460.0,0.00023158,2]
[378187051,1754773843686,-460.0,0.00023158,2]
[378187052,1754773843696,-460.0,0.00023158,2]
[378187053,1754773843705,-460.0,0.00023158,2]
[378187054,1754773843715,-460.0,0.00023158,2]
[378187055,1754773843724,-945.05,0.00023159,2]
[378187056,1754773843734,-460.0,0.00023159,2]
[378187057,1754773843744,-460.0,0.00023159,2]
[378187058,1754773843754,-512.47,0.00023159,2]
[378187059,1754773843763,-460.0,0.00023159,2]
[378187060,1754773843773,-460.0,0.00023159,2]
[378187061,1754773843782,-460.0,0.00023159,2]
[378187062,1754773843799,-460.0,0.00023159,2]
[378187063,1754773843809,-460.0,0.00023159,2]
[378187064,1754773843818,-460.0,0.00023159,2]
[378187065,1754773843828,-316.46,0.0002319,2]
[378187066,1754773843838,-151.0,0.00023293,2]
[378187067,1754773843857,-151.0,0.00023293,2]
[378187068,1754773843867,-160.0,0.0002335,2]
[378187069,1754773843878,-5349.41187522,0.00023409,2]
[378187070,1754773843888,-1310.15,0.00023432,2]
[378187071,1754773843904,-460.0,0.00023432,2]
[378187072,1754773843914,-460.0,0.00023432,2]
[378187073,1754773843924,-460.0,0.00023432,2]
[378187074,1754773843934,-460.0,0.00023432,2]
[378187077,1754773843946,-460.0,0.00023432,2]
[378187078,1754773844132,-460.0,0.00023432,2]
[378187079,1754773844142,-945.05,0.00023433,2]
[378187080,1754773844152,-460.0,0.00023433,2]
[378187081,1754773844162,-460.0,0.00023433,2]
[378187082,1754773844172,-512.47,0.00023433,2]
[378187083,1754773844182,-460.0,0.00023433,2]
[378187084,1754773844191,-460.0,0.00023433,2]
[378187085,1754773844201,-460.0,0.00023433,2]
[378187086,1754773844210,-460.0,0.00023433,2]
[378187087,1754773844220,-460.0,0.00023433,2]
[378187088,1754773844230,-460.0,0.00023433,2]
[378187089,1754773844239,-1207.06,0.00023697,3]
[378187090,1754773844248,-603.52,0.00023697,3]
[378187091,1754773844258,-301.76,0.00023697,3]
[378187092,1754773844267,-1310.15,0.00023706,2]
[378187093,1754773844276,-460.0,0.00023706,2]
[378187094,1754773844286,-460.0,0.00023706,2]
[378187095,1754773844295,-460.0,0.00023706,2]
[378187096,1754773844305,-460.0,0.00023706,2]
[378187097,1754773844315,-460.0,0.00023706,2]
[378187098,1754773844324,-460.0,0.00023706,2]
[378187099,1754773844334,-945.05,0.00023707,2]
[378187100,1754773844344,-460.0,0.00023707,2]
[378187101,1754773844353,-460.0,0.00023707,2]
[378187102,1754773844362,-512.47,0.00023707,2]
[378187103,1754773844372,-460.0,0.00023707,2]
[378187104,1754773844382,-460.0,0.00023707,2]
[378187105,1754773844391,-583.62149105,0.00023707,2]
[378187106,1754773844401,-460.0,0.00023707,2]
[378187107,1754773844410,-362.57106773,0.00023707,2]
[378187108,1754773844420,-460.0,0.00023707,2]
[378187109,1754773844429,-500.0,0.00023886,2]
[378187110,1754773844439,-260.0,0.00023898,2]
[378187111,1754773844448,-500.0,0.00023973,2]
[378187112,1754773844458,-500.0,0.00023973,2]
[378187113,1754773844467,-152.57967547,0.00023973,2]
[378187114,1754773844477,-1310.15,0.0002398,2]
[378187115,1754773844487,-460.0,0.0002398,2]
[378187116,1754773844496,-460.0,0.0002398,2]
[378187117,1754773844506,-460.0,0.0002398,2]
[378187118,1754773844515,-460.0,0.0002398,2]
[378187119,1754773844525,-460.0,0.0002398,2]
[378187120,1754773844535,-460.0,0.0002398,2]
[378187121,1754773844545,-945.05,0.00023981,2]
[378187122,1754773844555,-460.0,0.00023981,2]
[378187123,1754773844564,-460.0,0.00023981,2]
[378187124,1754773844573,-512.47,0.00023981,2]
[378187125,1754773844583,-460.0,0.00023981,2]
[378187126,1754773844592,-460.0,0.00023981,2]
[378187127,1754773844602,-460.0,0.00023981,2]
[378187128,1754773844611,-460.0,0.00023981,2]
[378187129,1754773844622,-389.27332272,0.00023989,2]
[378187130,1754773844631,-830.42650305,0.00023989,2]
[378187131,1754773844640,-830.42650305,0.00023989,2]
[378187132,1754773844650,-830.42650305,0.00023989,2]
[378187133,1754773844659,-830.42650305,0.00023989,2]
[378187134,1754773844668,-830.42650305,0.00023989,2]
[378187135,1754773844678,-830.42650305,0.00023989,2]
[378187136,1754773844687,-830.42650305,0.00023989,2]
[378187137,1754773844697,-830.42650305,0.00023989,2]
[378187138,1754773844707,-830.42650305,0.00023989,2]
[378187139,1754773844716,-830.42650305,0.00023989,2]
[378187140,1754773844725,-830.42650305,0.00023989,2]
[378187141,1754773844735,-830.42650305,0.00023989,2]
[378187142,1754773844744,-881.52967246,0.00023989,2]
[378187143,1754773844753,-881.52967246,0.00023989,2]
[378187144,1754773844763,-881.52967246,0.00023989,2]
[378187145,1754773844772,-881.52967246,0.00023989,2]
[378187146,1754773844782,-881.52967246,0.00023989,2]
[378187147,1754773844791,-881.52967246,0.00023989,2]
[378187148,1754773844800,-881.52967246,0.00023989,2]
[378187149,1754773844809,-881.52967246,0.00023989,2]
[378187150,1754773844819,-881.52967246,0.00023989,2]
[378187151,1754773844828,-872.18011533,0.00023989,2]
[378187152,1754773844838,-872.18011533,0.00023989,2]
[378187153,1754773844847,-872.18011533,0.00023989,2]
[378187154,1754773844856,-872.18011533,0.00023989,2]
[378187155,1754773844865,-78495.63505698,0.0002399,2]
[378187156,1754773844876,-157.610126,0.00024044,2]
[378187157,1754773844887,-2150.0,0.00024158,2]
[378187158,1754773844899,-636.0,0.00024158,2]
[378187159,1754773844909,-971.0,0.00024158,2]
[378187160,1754773844918,-5000.0,0.00024164,2]
[378187161,1754773844927,-1310.15,0.00024254,2]
[378187162,1754773844938,-460.0,0.00024254,2]
[378187163,1754773844950,-460.0,0.00024254,2]
[378187164,1754773844959,-460.0,0.00024254,2]
[378187165,1754773844969,-460.0,0.00024254,2]
[378187166,1754773844979,-460.0,0.00024254,2]
[378187167,1754773844989,-460.0,0.00024254,2]
[378187168,1754773844999,-945.05,0.00024255,2]
[378187169,1754773845008,-460.0,0.00024255,2]
[378187170,1754773845018,-460.0,0.00024255,2]
[378187171,1754773845027,-512.47,0.00024255,2]
[378187172,1754773845036,-460.0,0.00024255,2]
[378187173,1754773845046,-460.0,0.00024255,2]
[378187174,1754773845055,-460.0,0.00024255,2]
[378187175,1754773845065,-460.0,0.00024255,2]
[378187176,1754773845074,-151.0,0.00024256,7]
[378187177,1754773845083,-175.449642,0.00024257,7]
[378187178,1754773845093,-175.449642,0.00024257,7]
[378187179,1754773845102,-408.0,0.0002431,2]
[378187180,1754773845111,-415.728,0.0002431,2]
[378187181,1754773845121,-316.46,0.00024379,2]
[378187182,1754773845130,-360.0,0.00024446,2]
[378187183,1754773845140,-1310.15,0.00024528,2]
[378187184,1754773845149,-460.0,0.00024528,2]
[378187185,1754773845159,-460.0,0.00024528,2]
[378187186,1754773845168,-196.41769324,0.00024528,2]
[378187187,1754773845177,-460.0,0.00024528,2]
[378187188,1754773845187,-460.0,0.00024528,2]
[378187189,1754773845196,-460.0,0.00024528,2]
[378187190,1754773845205,-945.05,0.00024529,2]
[378187191,1754773845215,-460.0,0.00024529,2]
[378187192,1754773845225,-460.0,0.00024529,2]
[378187193,1754773845234,-512.47,0.00024529,2]
[378187194,1754773845244,-460.0,0.00024529,2]
[378187195,1754773845253,-460.0,0.00024529,2]
[378187196,1754773845262,-460.0,0.00024529,2]
[378187197,1754773845272,-460.0,0.00024529,2]
[378187198,1754773845281,-246.136,0.00024531,2]
[378187199,1754773845291,-151.0,0.000246,8]
[378187200,1754773845301,-1436.53,0.00024657,4]
[378187201,1754773845311,-2052.41606612,0.000248,2]
[378187202,1754773845320,-1310.15,0.00024802,2]
[378187203,1754773845330,-460.0,0.00024802,2]
[378187204,1754773845340,-460.0,0.00024802,2]
[378187205,1754773845350,-460.0,0.00024802,2]
[378187206,1754773845360,-460.0,0.00024802,2]
[378187207,1754773845370,-460.0,0.00024802,2]
[378187208,1754773845380,-945.05,0.00024803,2]
[378187209,1754773845389,-460.0,0.00024803,2]
[378187210,1754773845398,-460.0,0.00024803,2]
[378187211,1754773845407,-512.47,0.00024803,2]
[378187212,1754773845416,-460.0,0.00024803,2]
[378187213,1754773845425,-460.0,0.00024803,2]
[378187214,1754773845434,-460.0,0.00024803,2]
[378187215,1754773845444,-460.0,0.00024803,2]
[378187216,1754773845454,-151.0,0.00024805,7]
[378187217,1754773845463,-158.776959,0.00024805,7]
[378187218,1754773845473,-158.776959,0.00024805,7]
[378187219,1754773845482,-615.51237071,0.00024873,2]
[378187220,1754773845492,-500.0,0.00024873,2]
[378187221,1754773845501,-500.0,0.00024873,2]
[378187222,1754773845511,-151.0,0.000249,7]
[378187223,1754773845521,-151.0,0.000249,7]
[378187224,1754773845530,-158.776959,0.000249,7]
[378187225,1754773845540,-158.776959,0.000249,7]
[378187226,1754773845549,-151.0,0.000249,7]
[378187227,1754773845559,-175.449642,0.000249,7]
[378187228,1754773845568,-175.449642,0.000249,7]
[378187229,1754773845578,-159.199082,0.000249,7]
[378187230,1754773845587,-159.199082,0.000249,7]
[378187231,1754773845596,-424.001,0.000249,8]
[378187232,1754773845605,-232112.97412372,0.000249,2]
[378187233,1754773845625,-240830.62310171,0.000249,2]
[378187234,1754773845991,169.91955828,0.00021415,2]
[378187236,1754773846329,603.96065781,0.000199,2]
[378187241,1754773881936,16739.23832652,0.00021416,2]